[Event "Titled Tuesday Blitz November 14 Early 2023"]
[White "Zivic, Dragan"]
[Black "Dahlgren, James Allen"]
[WhiteFideId "904740"]
[BlackFideId "22256873"]
[WhiteElo "2318"]
[BlackElo "2136"]
[Result "1-0"]
[Round "6"]
[TimeControl "180+1"]
[Date "2023.11.14"]
[WhiteClock "0:00:07"]
[BlackClock "0:00:04"]
[Board "182"]

1. c4 {[%clk 0:03:00]}  e5 {[%clk 0:02:58]} 2. Nc3 {[%clk 0:02:59]}  c5 {[%clk 0:02:57]} 3. Nf3 {[%clk 0:02:58]}  Nc6 {[%clk 0:02:57]} 4. d3 {[%clk 0:02:58]}  f5 {[%clk 0:02:58]} 5. g3 {[%clk 0:02:56]}  Nf6 {[%clk 0:02:58]} 6. Bg2 {[%clk 0:02:55]}  d6 {[%clk 0:02:58]} 7. Bg5 {[%clk 0:02:55]}  Be7 {[%clk 0:02:58]} 8. Bxf6 {[%clk 0:02:54]}  Bxf6 {[%clk 0:02:59]} 9. Nd5 {[%clk 0:02:53]}  O-O {[%clk 0:03:00]} 10. O-O {[%clk 0:02:53]}  g5 {[%clk 0:03:00]} 11. e3 {[%clk 0:02:51]}  g4 {[%clk 0:03:00]} 12. Nd2 {[%clk 0:02:49]}  Bg7 {[%clk 0:02:53]} 13. f3 {[%clk 0:02:46]}  h5 {[%clk 0:02:53]} 14. fxg4 {[%clk 0:02:43]}  hxg4 {[%clk 0:02:54]} 15. a3 {[%clk 0:02:37]}  Qg5 {[%clk 0:02:48]} 16. Qe2 {[%clk 0:02:34]}  Bd7 {[%clk 0:02:47]} 17. Rab1 {[%clk 0:02:13]}  Rae8 {[%clk 0:02:43]} 18. b4 {[%clk 0:02:12]}  b6 {[%clk 0:02:36]} 19. b5 {[%clk 0:02:07]}  Ne7 {[%clk 0:02:20]} 20. Qf2 {[%clk 0:02:01]}  Nxd5 {[%clk 0:02:07]} 21. Bxd5+ {[%clk 0:02:01]}  Be6 {[%clk 0:01:59]} 22. Bxe6+ {[%clk 0:02:01]}  Rxe6 {[%clk 0:02:00]} 23. Rbe1 {[%clk 0:02:00]}  e4 {[%clk 0:01:48]} 24. dxe4 {[%clk 0:01:56]}  fxe4 {[%clk 0:01:47]} 25. Qe2 {[%clk 0:01:55]}  Rf3 {[%clk 0:01:01]} 26. Nxf3 {[%clk 0:01:53]}  exf3 {[%clk 0:00:46]} 27. Qd3 {[%clk 0:01:45]}  Bh6 {[%clk 0:00:31]} 28. Kh1 {[%clk 0:01:35]}  Qe5 {[%clk 0:00:20]} 29. Rd1 {[%clk 0:01:31]}  Bxe3 {[%clk 0:00:17]} 30. Qd5 {[%clk 0:01:30]}  Qxd5 {[%clk 0:00:13]} 31. Rxd5 {[%clk 0:01:27]}  Kf7 {[%clk 0:00:12]} 32. Rh5 {[%clk 0:01:19]}  Rg6 {[%clk 0:00:09]} 33. h3 {[%clk 0:01:16]}  f2 {[%clk 0:00:07]} 34. Kg2 {[%clk 0:01:01]}  gxh3+ {[%clk 0:00:05]} 35. Kxh3 {[%clk 0:00:53]}  Rg7 {[%clk 0:00:04]} 36. g4 {[%clk 0:00:53]}  Ke6 {[%clk 0:00:04]} 37. Kg3 {[%clk 0:00:51]}  Bd4 {[%clk 0:00:04]} 38. Rf5 {[%clk 0:00:48]}  Rf7 {[%clk 0:00:03]} 39. R1xf2 {[%clk 0:00:40]}  Bxf2+ {[%clk 0:00:03]} 40. Rxf2 {[%clk 0:00:40]}  Rxf2 {[%clk 0:00:03]} 41. Kxf2 {[%clk 0:00:41]}  Kf6 {[%clk 0:00:03]} 42. Kf3 {[%clk 0:00:41]}  Kg5 {[%clk 0:00:04]} 43. Kg3 {[%clk 0:00:37]}  Kf6 {[%clk 0:00:04]} 44. Kf4 {[%clk 0:00:37]}  Kg6 {[%clk 0:00:04]} 45. g5 {[%clk 0:00:32]}  Kg7 {[%clk 0:00:05]} 46. Kf5 {[%clk 0:00:32]}  Kf7 {[%clk 0:00:05]} 47. g6+ {[%clk 0:00:32]}  Kg7 {[%clk 0:00:05]} 48. Kg5 {[%clk 0:00:31]}  d5 {[%clk 0:00:05]} 49. cxd5 {[%clk 0:00:28]}  c4 {[%clk 0:00:06]} 50. d6 {[%clk 0:00:29]}  c3 {[%clk 0:00:05]} 51. d7 {[%clk 0:00:29]}  c2 {[%clk 0:00:06]} 52. d8=Q {[%clk 0:00:28]}  c1=Q+ {[%clk 0:00:06]} 53. Kf5 {[%clk 0:00:28]}  Qc2+ {[%clk 0:00:06]} 54. Ke5 {[%clk 0:00:21]}  Qc3+ {[%clk 0:00:05]} 55. Ke6 {[%clk 0:00:19]}  Qc4+ {[%clk 0:00:04]} 56. Ke7 {[%clk 0:00:15]}  Qxb5 {[%clk 0:00:02]} 57. Qd4+ {[%clk 0:00:06]}  Kxg6 {[%clk 0:00:02]} 58. Qg4+ {[%clk 0:00:06]}  Kh6 {[%clk 0:00:02]} 59. Qh4+ {[%clk 0:00:06]}  Kg6 {[%clk 0:00:02]} 60. Qg4+ {[%clk 0:00:07]}  Kh6 {[%clk 0:00:03]} 61. Qh4+ {[%clk 0:00:07]}  Kg6 {[%clk 0:00:04]} 62. Qg3+ {[%clk 0:00:07]}  Kh6 {[%clk 0:00:05]} 63. Qf4+ {[%clk 0:00:07]}  Kg6 {[%clk 0:00:05]} 64. Qc7 {[%clk 0:00:07]}  Kh6 {[%clk 0:00:06]} 65. Qxa7 {[%clk 0:00:07]}  Qc5+ {[%clk 0:00:06]} 66. Kd7 {[%clk 0:00:07]}  Qc4 {[%clk 0:00:07]} 67. Qxb6+ {[%clk 0:00:06]}  Kg5 {[%clk 0:00:07]} 68. Qb4 {[%clk 0:00:07]}  Qd5+ {[%clk 0:00:06]} 69. Kc7 {[%clk 0:00:07]}  Qb7+ {[%clk 0:00:04]} 70. Kxb7 {[%clk 0:00:07]} 1-0


[Site "https://www.chess.com"]

[Event "Titled Tuesday Blitz November 14 Early 2023"]
[White "DonCiao"]
[Black "rikchessmx"]
[WhiteElo "2125"]
[BlackElo "2317"]
[Result "0-1"]
[Round "6"]
[TimeControl "180+1"]
[Date "2023.11.14"]
[WhiteClock "0:00:00"]
[BlackClock "0:00:51"]
[Board "183"]

1. c4 {[%clk 0:03:00]}  Nf6 {[%clk 0:02:57]} 2. g3 {[%clk 0:03:00]}  c5 {[%clk 0:02:53]} 3. Bg2 {[%clk 0:03:01]}  Nc6 {[%clk 0:02:54]} 4. Nc3 {[%clk 0:02:57]}  g6 {[%clk 0:02:51]} 5. Nf3 {[%clk 0:02:56]}  Bg7 {[%clk 0:02:51]} 6. d4 {[%clk 0:02:56]}  cxd4 {[%clk 0:02:50]} 7. Nxd4 {[%clk 0:02:56]}  O-O {[%clk 0:02:50]} 8. O-O {[%clk 0:02:56]}  a6 {[%clk 0:02:50]} 9. c5 {[%clk 0:02:55]}  Qc7 {[%clk 0:02:44]} 10. Nb3 {[%clk 0:02:46]}  Na5 {[%clk 0:02:40]} 11. Na4 {[%clk 0:02:07]}  Rb8 {[%clk 0:02:23]} 12. Bf4 {[%clk 0:01:58]}  e5 {[%clk 0:02:23]} 13. Bg5 {[%clk 0:01:58]}  h6 {[%clk 0:02:14]} 14. Bd2 {[%clk 0:01:52]}  Nxb3 {[%clk 0:02:12]} 15. Qxb3 {[%clk 0:01:50]}  d5 {[%clk 0:02:06]} 16. cxd6 {[%clk 0:01:50]}  Qxd6 {[%clk 0:02:01]} 17. Bb4 {[%clk 0:01:49]}  Qd7 {[%clk 0:01:41]} 18. Bxf8 {[%clk 0:01:39]}  Bxf8 {[%clk 0:01:38]} 19. Nb6 {[%clk 0:01:39]}  Qg4 {[%clk 0:01:36]} 20. Nxc8 {[%clk 0:01:36]}  Rxc8 {[%clk 0:01:36]} 21. Bf3 {[%clk 0:01:14]}  Qh3 {[%clk 0:01:29]} 22. Qxb7 {[%clk 0:01:01]}  e4 {[%clk 0:01:28]} 23. Bg2 {[%clk 0:00:55]}  Qe6 {[%clk 0:01:23]} 24. Rac1 {[%clk 0:00:51]}  Rxc1 {[%clk 0:01:19]} 25. Rxc1 {[%clk 0:00:51]}  Qxa2 {[%clk 0:01:19]} 26. Rc8 {[%clk 0:00:45]}  Kg7 {[%clk 0:01:13]} 27. Bxe4 {[%clk 0:00:35]}  Qa1+ {[%clk 0:01:03]} 28. Kg2 {[%clk 0:00:34]}  Nxe4 {[%clk 0:01:00]} 29. Qxe4 {[%clk 0:00:33]}  Qxb2 {[%clk 0:01:00]} 30. Qe8 {[%clk 0:00:29]}  Qb4 {[%clk 0:00:57]} 31. Qe5+ {[%clk 0:00:23]}  Kg8 {[%clk 0:00:56]} 32. h4 {[%clk 0:00:18]}  Qb7+ {[%clk 0:00:55]} 33. Kh2 {[%clk 0:00:04]}  Qxc8 {[%clk 0:00:54]} 34. Qa5 {[%clk 0:00:03]}  Qe6 {[%clk 0:00:52]} 35. e3 {[%clk 0:00:00]}  h5 {[%clk 0:00:51]} 0-1


[Site "https://www.chess.com"]

[Event "Titled Tuesday Blitz November 14 Early 2023"]
[White "Smirnov, Timofey"]
[Black "Josgar05"]
[WhiteFideId "24176427"]
[WhiteElo "2096"]
[BlackElo "2309"]
[Result "0-1"]
[Round "6"]
[TimeControl "180+1"]
[Date "2023.11.14"]
[WhiteClock "0:00:58"]
[BlackClock "0:01:41"]
[Board "185"]

1. d4 {[%clk 0:03:00]}  Nf6 {[%clk 0:02:59]} 2. Bf4 {[%clk 0:03:00]}  c5 {[%clk 0:02:56]} 3. c3 {[%clk 0:02:59]}  cxd4 {[%clk 0:02:55]} 4. cxd4 {[%clk 0:02:59]}  d5 {[%clk 0:02:53]} 5. Nc3 {[%clk 0:02:58]}  Nh5 {[%clk 0:02:51]} 6. Bg3 {[%clk 0:02:56]}  Nxg3 {[%clk 0:02:50]} 7. hxg3 {[%clk 0:02:57]}  Nc6 {[%clk 0:02:51]} 8. e3 {[%clk 0:02:57]}  Bf5 {[%clk 0:02:51]} 9. Bd3 {[%clk 0:02:56]}  Bxd3 {[%clk 0:02:51]} 10. Qxd3 {[%clk 0:02:57]}  e6 {[%clk 0:02:51]} 11. Nf3 {[%clk 0:02:57]}  Be7 {[%clk 0:02:50]} 12. Rxh7 {[%clk 0:02:52]}  Rxh7 {[%clk 0:02:50]} 13. Qxh7 {[%clk 0:02:53]}  Qb6 {[%clk 0:02:48]} 14. Qc2 {[%clk 0:02:18]}  O-O-O {[%clk 0:02:46]} 15. Rc1 {[%clk 0:02:11]}  Kb8 {[%clk 0:02:46]} 16. Ne5 {[%clk 0:02:01]}  Nb4 {[%clk 0:02:42]} 17. Qb3 {[%clk 0:01:55]}  f6 {[%clk 0:02:40]} 18. Na4 {[%clk 0:01:39]}  Qa5 {[%clk 0:02:17]} 19. Qc3 {[%clk 0:01:16]}  fxe5 {[%clk 0:02:15]} 20. a3 {[%clk 0:01:12]}  Nc6 {[%clk 0:01:58]} 21. b4 {[%clk 0:01:07]}  Qxa4 {[%clk 0:01:51]} 22. b5 {[%clk 0:01:07]}  Qxb5 {[%clk 0:01:47]} 23. dxe5 {[%clk 0:01:05]}  Qa5 {[%clk 0:01:41]} 24. Kd2 {[%clk 0:00:58]} 0-1


[Site "https://www.chess.com"]

[Event "Titled Tuesday Blitz November 14 Early 2023"]
[White "Samarth J Rao"]
[Black "Larina, Maria"]
[WhiteFideId "46652370"]
[BlackFideId "24113182"]
[WhiteElo "2046"]
[BlackElo "2294"]
[Result "1-0"]
[Round "6"]
[TimeControl "180+1"]
[Date "2023.11.14"]
[WhiteClock "0:00:47"]
[BlackClock "0:00:20"]
[Board "188"]

1. Nf3 {[%clk 0:02:51]}  f5 {[%clk 0:02:59]} 2. c4 {[%clk 0:02:52]}  Nf6 {[%clk 0:02:59]} 3. b3 {[%clk 0:02:50]}  d6 {[%clk 0:02:59]} 4. Bb2 {[%clk 0:02:51]}  e5 {[%clk 0:02:59]} 5. d3 {[%clk 0:02:49]}  Be7 {[%clk 0:02:59]} 6. g3 {[%clk 0:02:50]}  O-O {[%clk 0:02:59]} 7. Bg2 {[%clk 0:02:51]}  Nc6 {[%clk 0:02:57]} 8. O-O {[%clk 0:02:51]}  a5 {[%clk 0:02:56]} 9. a3 {[%clk 0:02:51]}  Kh8 {[%clk 0:02:48]} 10. Nc3 {[%clk 0:02:49]}  Qe8 {[%clk 0:02:47]} 11. Nd2 {[%clk 0:02:49]}  Bd7 {[%clk 0:02:44]} 12. e4 {[%clk 0:02:49]}  f4 {[%clk 0:02:41]} 13. Nd5 {[%clk 0:02:50]}  Bd8 {[%clk 0:02:38]} 14. f3 {[%clk 0:02:45]}  fxg3 {[%clk 0:02:32]} 15. hxg3 {[%clk 0:02:41]}  Qg6 {[%clk 0:02:31]} 16. Kf2 {[%clk 0:02:33]}  Nh5 {[%clk 0:02:28]} 17. Rh1 {[%clk 0:02:20]}  Qxg3+ {[%clk 0:02:16]} 18. Kg1 {[%clk 0:02:12]}  Nf4 {[%clk 0:02:12]} 19. Nxf4 {[%clk 0:02:10]}  Rxf4 {[%clk 0:02:13]} 20. Nf1 {[%clk 0:02:08]}  Qg6 {[%clk 0:02:11]} 21. Bc1 {[%clk 0:02:07]}  Rf8 {[%clk 0:02:07]} 22. Be3 {[%clk 0:01:58]}  Nd4 {[%clk 0:01:59]} 23. Bxd4 {[%clk 0:01:54]}  exd4 {[%clk 0:02:00]} 24. Qe2 {[%clk 0:01:50]}  Bg5 {[%clk 0:01:53]} 25. Kf2 {[%clk 0:01:48]}  c6 {[%clk 0:01:45]} 26. Ke1 {[%clk 0:01:44]}  d5 {[%clk 0:01:43]} 27. Kd1 {[%clk 0:01:43]}  dxc4 {[%clk 0:01:40]} 28. bxc4 {[%clk 0:01:42]}  c5 {[%clk 0:01:38]} 29. a4 {[%clk 0:01:38]}  Ra6 {[%clk 0:01:28]} 30. Kc2 {[%clk 0:01:36]}  Rb6 {[%clk 0:01:25]} 31. Bh3 {[%clk 0:01:24]}  Bxh3 {[%clk 0:01:00]} 32. Rxh3 {[%clk 0:01:25]}  Bf4 {[%clk 0:00:51]} 33. Rh4 {[%clk 0:01:22]}  Qf6 {[%clk 0:00:46]} 34. Rg4 {[%clk 0:01:19]}  Qc6 {[%clk 0:00:37]} 35. Qg2 {[%clk 0:01:13]}  Qd7 {[%clk 0:00:35]} 36. Ng3 {[%clk 0:00:58]}  Bxg3 {[%clk 0:00:35]} 37. Qxg3 {[%clk 0:00:58]}  Rb4 {[%clk 0:00:35]} 38. Kd2 {[%clk 0:00:56]}  Rg8 {[%clk 0:00:28]} 39. Rh1 {[%clk 0:00:53]}  Rb2+ {[%clk 0:00:25]} 40. Kc1 {[%clk 0:00:50]}  Rb3 {[%clk 0:00:20]} 41. Rxh7+ {[%clk 0:00:48]}  Kxh7 {[%clk 0:00:20]} 42. Qh4# {[%clk 0:00:47]} 1-0


[Site "https://www.chess.com"]

[Event "Titled Tuesday Blitz November 14 Early 2023"]
[White "Villafane Gomez, Jaime"]
[Black "Quirke, Jeffrey"]
[WhiteFideId "4426517"]
[BlackFideId "2013029"]
[WhiteElo "1741"]
[BlackElo "2257"]
[Result "0-1"]
[Round "6"]
[TimeControl "180+1"]
[Date "2023.11.14"]
[WhiteClock "0:00:00"]
[BlackClock "0:01:54"]
[Board "189"]

1. e4 {[%clk 0:02:58]}  e6 {[%clk 0:02:58]} 2. d4 {[%clk 0:02:53]}  d5 {[%clk 0:02:58]} 3. Nc3 {[%clk 0:02:52]}  Nf6 {[%clk 0:02:56]} 4. e5 {[%clk 0:02:48]}  Nfd7 {[%clk 0:02:56]} 5. f4 {[%clk 0:02:48]}  c5 {[%clk 0:02:56]} 6. Nf3 {[%clk 0:02:45]}  Nc6 {[%clk 0:02:56]} 7. Be3 {[%clk 0:02:45]}  Rb8 {[%clk 0:02:56]} 8. Qd2 {[%clk 0:02:41]}  Qa5 {[%clk 0:02:53]} 9. dxc5 {[%clk 0:02:05]}  Bxc5 {[%clk 0:02:43]} 10. O-O-O {[%clk 0:01:53]}  b5 {[%clk 0:02:37]} 11. Bxc5 {[%clk 0:01:46]}  Nxc5 {[%clk 0:02:35]} 12. Nd4 {[%clk 0:01:30]}  Nxd4 {[%clk 0:02:28]} 13. Qxd4 {[%clk 0:01:29]}  b4 {[%clk 0:02:23]} 14. Nb1 {[%clk 0:00:59]}  O-O {[%clk 0:02:16]} 15. f5 {[%clk 0:00:51]}  exf5 {[%clk 0:02:13]} 16. Be2 {[%clk 0:00:17]}  Be6 {[%clk 0:02:07]} 17. h3 {[%clk 0:00:13]}  Rbc8 {[%clk 0:01:57]} 18. g4 {[%clk 0:00:00]}  Qxa2 {[%clk 0:01:54]} 0-1


[Site "https://www.chess.com"]

[Event "Titled Tuesday Blitz November 14 Early 2023"]
[White "Perez Rodriguez, Luis Manuel"]
[Black "Vila Dupla, Aurelio"]
[WhiteFideId "3503364"]
[BlackFideId "2203383"]
[WhiteElo "2568"]
[BlackElo "2200"]
[Result "1-0"]
[Round "6"]
[TimeControl "180+1"]
[Date "2023.11.14"]
[WhiteClock "0:02:02"]
[BlackClock "0:01:26"]
[Board "191"]

1. e4 {[%clk 0:02:56]}  c5 {[%clk 0:02:59]} 2. Nf3 {[%clk 0:02:55]}  d6 {[%clk 0:02:59]} 3. d4 {[%clk 0:02:56]}  cxd4 {[%clk 0:02:59]} 4. Nxd4 {[%clk 0:02:57]}  Nf6 {[%clk 0:02:59]} 5. Nc3 {[%clk 0:02:57]}  g6 {[%clk 0:03:00]} 6. Be3 {[%clk 0:02:58]}  Bg7 {[%clk 0:03:00]} 7. f3 {[%clk 0:02:58]}  O-O {[%clk 0:03:00]} 8. Qd2 {[%clk 0:02:59]}  Nc6 {[%clk 0:03:00]} 9. Bc4 {[%clk 0:03:00]}  Bd7 {[%clk 0:02:59]} 10. h4 {[%clk 0:03:00]}  Ne5 {[%clk 0:02:58]} 11. Bb3 {[%clk 0:03:00]}  h5 {[%clk 0:02:58]} 12. O-O-O {[%clk 0:02:59]}  Rc8 {[%clk 0:02:58]} 13. Kb1 {[%clk 0:03:00]}  Qa5 {[%clk 0:02:45]} 14. Nd5 {[%clk 0:02:52]}  Qd8 {[%clk 0:02:44]} 15. Nxf6+ {[%clk 0:02:47]}  Bxf6 {[%clk 0:02:43]} 16. g4 {[%clk 0:02:48]}  Nxf3 {[%clk 0:02:08]} 17. Nxf3 {[%clk 0:02:40]}  Bxg4 {[%clk 0:02:08]} 18. Rdg1 {[%clk 0:02:28]}  Bxf3 {[%clk 0:02:05]} 19. Rxg6+ {[%clk 0:02:28]}  Kh7 {[%clk 0:01:54]} 20. Rh6+ {[%clk 0:02:13]}  Kg8 {[%clk 0:01:45]} 21. Rg1+ {[%clk 0:02:12]}  Bg4 {[%clk 0:01:26]} 22. Rxh5 {[%clk 0:02:02]} 1-0


[Site "https://www.chess.com"]

[Event "Titled Tuesday Blitz November 14 Early 2023"]
[White "Semenova, Alina"]
[Black "Fakhretdinova, Margarita"]
[WhiteFideId "24113875"]
[BlackFideId "24103667"]
[WhiteElo "2160"]
[BlackElo "2331"]
[Result "1-0"]
[Round "6"]
[TimeControl "180+1"]
[Date "2023.11.14"]
[WhiteClock "0:00:11"]
[BlackClock "0:00:02"]
[Board "194"]

1. e4 {[%clk 0:02:59]}  c5 {[%clk 0:03:00]} 2. Nf3 {[%clk 0:02:58]}  d6 {[%clk 0:03:00]} 3. d4 {[%clk 0:02:58]}  cxd4 {[%clk 0:03:01]} 4. Nxd4 {[%clk 0:02:59]}  Nf6 {[%clk 0:03:01]} 5. f3 {[%clk 0:02:59]}  g6 {[%clk 0:03:01]} 6. c4 {[%clk 0:02:58]}  Bg7 {[%clk 0:03:01]} 7. Be3 {[%clk 0:02:59]}  O-O {[%clk 0:03:01]} 8. Nc3 {[%clk 0:02:58]}  Nc6 {[%clk 0:03:02]} 9. Qd2 {[%clk 0:02:57]}  Bd7 {[%clk 0:02:56]} 10. Be2 {[%clk 0:02:46]}  Qa5 {[%clk 0:02:55]} 11. O-O {[%clk 0:02:34]}  Rfc8 {[%clk 0:02:54]} 12. Rfd1 {[%clk 0:02:26]}  Qd8 {[%clk 0:02:52]} 13. Rac1 {[%clk 0:02:21]}  h5 {[%clk 0:02:48]} 14. a3 {[%clk 0:02:20]}  Ne5 {[%clk 0:02:40]} 15. b3 {[%clk 0:02:15]}  Kh7 {[%clk 0:02:38]} 16. h3 {[%clk 0:01:47]}  Nc6 {[%clk 0:02:19]} 17. f4 {[%clk 0:01:40]}  Qf8 {[%clk 0:01:35]} 18. Bf3 {[%clk 0:01:34]}  Rd8 {[%clk 0:01:19]} 19. Nd5 {[%clk 0:01:12]}  Nxd5 {[%clk 0:01:12]} 20. exd5 {[%clk 0:01:13]}  Nxd4 {[%clk 0:01:10]} 21. Bxd4 {[%clk 0:01:14]}  Bxd4+ {[%clk 0:01:10]} 22. Qxd4 {[%clk 0:01:15]}  Qg7 {[%clk 0:01:10]} 23. Qxg7+ {[%clk 0:01:13]}  Kxg7 {[%clk 0:01:11]} 24. g4 {[%clk 0:01:12]}  hxg4 {[%clk 0:01:04]} 25. hxg4 {[%clk 0:01:13]}  Rh8 {[%clk 0:00:56]} 26. Kg2 {[%clk 0:01:13]}  Rae8 {[%clk 0:00:48]} 27. Kg3 {[%clk 0:01:03]}  g5 {[%clk 0:00:44]} 28. f5 {[%clk 0:00:42]}  Kf6 {[%clk 0:00:43]} 29. b4 {[%clk 0:00:41]}  Rh4 {[%clk 0:00:28]} 30. Rh1 {[%clk 0:00:38]}  Reh8 {[%clk 0:00:28]} 31. Rxh4 {[%clk 0:00:38]}  Rxh4 {[%clk 0:00:19]} 32. c5 {[%clk 0:00:36]}  Rh8 {[%clk 0:00:16]} 33. c6 {[%clk 0:00:36]}  bxc6 {[%clk 0:00:17]} 34. dxc6 {[%clk 0:00:36]}  Bc8 {[%clk 0:00:18]} 35. b5 {[%clk 0:00:33]}  e6 {[%clk 0:00:17]} 36. fxe6 {[%clk 0:00:32]}  fxe6 {[%clk 0:00:18]} 37. a4 {[%clk 0:00:32]}  d5 {[%clk 0:00:14]} 38. a5 {[%clk 0:00:32]}  Rh7 {[%clk 0:00:10]} 39. b6 {[%clk 0:00:30]}  axb6 {[%clk 0:00:11]} 40. axb6 {[%clk 0:00:30]}  Ke5 {[%clk 0:00:11]} 41. Rb1 {[%clk 0:00:28]}  Bb7 {[%clk 0:00:07]} 42. cxb7 {[%clk 0:00:14]}  Rxb7 {[%clk 0:00:08]} 43. Be2 {[%clk 0:00:14]}  Kd6 {[%clk 0:00:03]} 44. Ba6 {[%clk 0:00:14]}  Rb8 {[%clk 0:00:03]} 45. b7 {[%clk 0:00:14]}  Kc7 {[%clk 0:00:03]} 46. Rc1+ {[%clk 0:00:15]}  Kb6 {[%clk 0:00:02]} 47. Rc8 {[%clk 0:00:13]}  Ka7 {[%clk 0:00:02]} 48. Rxb8 {[%clk 0:00:12]}  Kxb8 {[%clk 0:00:03]} 49. Kf3 {[%clk 0:00:12]}  Ka7 {[%clk 0:00:03]} 50. Ke3 {[%clk 0:00:12]}  Kb8 {[%clk 0:00:04]} 51. Kd4 {[%clk 0:00:12]}  Ka7 {[%clk 0:00:04]} 52. Ke5 {[%clk 0:00:11]}  Kxa6 {[%clk 0:00:04]} 53. b8=Q {[%clk 0:00:11]}  Ka5 {[%clk 0:00:02]} 54. Kxe6 {[%clk 0:00:11]} 1-0


[Site "https://www.chess.com"]

[Event "Titled Tuesday Blitz November 14 Early 2023"]
[White "IsaqueGoncalvesSanto"]
[Black "Novikova, Anna"]
[BlackFideId "4146794"]
[WhiteElo "1876"]
[BlackElo "2209"]
[Result "1-0"]
[Round "6"]
[TimeControl "180+1"]
[Date "2023.11.14"]
[WhiteClock "0:00:34"]
[BlackClock "0:00:57"]
[Board "196"]

1. d4 {[%clk 0:02:56]}  Nf6 {[%clk 0:02:59]} 2. c4 {[%clk 0:02:56]}  g6 {[%clk 0:02:59]} 3. Nc3 {[%clk 0:02:55]}  Bg7 {[%clk 0:03:00]} 4. e4 {[%clk 0:02:55]}  d6 {[%clk 0:03:00]} 5. Nge2 {[%clk 0:02:54]}  O-O {[%clk 0:03:01]} 6. Ng3 {[%clk 0:02:54]}  e5 {[%clk 0:02:42]} 7. d5 {[%clk 0:02:54]}  a5 {[%clk 0:02:43]} 8. Be2 {[%clk 0:02:54]}  Nbd7 {[%clk 0:02:44]} 9. Be3 {[%clk 0:02:53]}  b6 {[%clk 0:02:43]} 10. Qd2 {[%clk 0:02:53]}  Nc5 {[%clk 0:02:42]} 11. Bh6 {[%clk 0:02:51]}  Ng4 {[%clk 0:02:02]} 12. Bxg4 {[%clk 0:02:34]}  Bxg4 {[%clk 0:02:01]} 13. f3 {[%clk 0:02:32]}  Bd7 {[%clk 0:01:53]} 14. h4 {[%clk 0:02:30]}  Bxh6 {[%clk 0:01:37]} 15. Qxh6 {[%clk 0:02:27]}  Nd3+ {[%clk 0:01:38]} 16. Kd2 {[%clk 0:02:25]}  Nxb2 {[%clk 0:01:37]} 17. h5 {[%clk 0:02:08]}  Qf6 {[%clk 0:01:36]} 18. Nf5 {[%clk 0:01:18]}  Bxf5 {[%clk 0:01:21]} 19. exf5 {[%clk 0:01:18]}  Qxf5 {[%clk 0:01:22]} 20. Ne4 {[%clk 0:01:16]}  Qf4+ {[%clk 0:01:06]} 21. Qxf4 {[%clk 0:01:11]}  exf4 {[%clk 0:01:07]} 22. Kc3 {[%clk 0:01:02]}  Na4+ {[%clk 0:01:05]} 23. Kd4 {[%clk 0:00:57]}  Nc5 {[%clk 0:01:04]} 24. Nf6+ {[%clk 0:00:50]}  Kg7 {[%clk 0:01:03]} 25. Ng4 {[%clk 0:00:47]}  f5 {[%clk 0:01:02]} 26. h6+ {[%clk 0:00:40]}  Kg8 {[%clk 0:00:59]} 27. Nf2 {[%clk 0:00:37]}  Rae8 {[%clk 0:00:57]} 28. Rhe1 {[%clk 0:00:34]}  Rf7 {[%clk 0:00:57]} 1-0


[Site "https://www.chess.com"]

[Event "Titled Tuesday Blitz November 14 Early 2023"]
[White "Martinez Alcantara, Jose Eduardo"]
[Black "Khismatullin, Denis"]
[WhiteFideId "3805662"]
[BlackFideId "4142578"]
[WhiteElo "3036"]
[BlackElo "2962"]
[Result "1-0"]
[Round "7"]
[TimeControl "180+1"]
[Date "2023.11.14"]
[WhiteClock "0:00:04"]
[BlackClock "0:00:00"]
[Board "3"]

1. e4 {[%clk 0:03:00]}  e5 {[%clk 0:02:59]} 2. Nf3 {[%clk 0:03:00]}  Nc6 {[%clk 0:03:00]} 3. Bb5 {[%clk 0:03:01]}  Nf6 {[%clk 0:02:57]} 4. d3 {[%clk 0:03:02]}  d6 {[%clk 0:02:56]} 5. c3 {[%clk 0:03:01]}  g6 {[%clk 0:02:55]} 6. O-O {[%clk 0:03:01]}  Bg7 {[%clk 0:02:56]} 7. Re1 {[%clk 0:03:01]}  O-O {[%clk 0:02:56]} 8. h3 {[%clk 0:03:02]}  a6 {[%clk 0:02:55]} 9. Ba4 {[%clk 0:03:02]}  b5 {[%clk 0:02:54]} 10. Bb3 {[%clk 0:03:02]}  Na5 {[%clk 0:02:53]} 11. Bc2 {[%clk 0:03:01]}  c5 {[%clk 0:02:54]} 12. Bg5 {[%clk 0:02:59]}  h6 {[%clk 0:02:49]} 13. Bxf6 {[%clk 0:02:58]}  Qxf6 {[%clk 0:02:47]} 14. Nbd2 {[%clk 0:02:59]}  Be6 {[%clk 0:02:43]} 15. Nf1 {[%clk 0:02:52]}  Qe7 {[%clk 0:02:40]} 16. Ne3 {[%clk 0:02:51]}  h5 {[%clk 0:02:34]} 17. a3 {[%clk 0:02:33]}  Nc6 {[%clk 0:02:26]} 18. Bb3 {[%clk 0:02:31]}  Bh6 {[%clk 0:02:22]} 19. Bd5 {[%clk 0:02:27]}  Qd7 {[%clk 0:02:13]} 20. Bxe6 {[%clk 0:01:49]}  Qxe6 {[%clk 0:02:00]} 21. Nd5 {[%clk 0:01:46]}  Rab8 {[%clk 0:01:55]} 22. b4 {[%clk 0:01:40]}  Kg7 {[%clk 0:01:48]} 23. d4 {[%clk 0:01:16]}  cxd4 {[%clk 0:01:45]} 24. cxd4 {[%clk 0:01:17]}  Ne7 {[%clk 0:01:41]} 25. dxe5 {[%clk 0:01:01]}  dxe5 {[%clk 0:01:42]} 26. Qb3 {[%clk 0:00:58]}  Rbc8 {[%clk 0:01:33]} 27. Rad1 {[%clk 0:00:58]}  Rfd8 {[%clk 0:01:12]} 28. Qb2 {[%clk 0:00:47]}  f6 {[%clk 0:00:53]} 29. Nxe7 {[%clk 0:00:36]}  Qxe7 {[%clk 0:00:54]} 30. g3 {[%clk 0:00:33]}  Kh7 {[%clk 0:00:49]} 31. Kg2 {[%clk 0:00:34]}  Rc4 {[%clk 0:00:44]} 32. Qe2 {[%clk 0:00:34]}  Rdc8 {[%clk 0:00:40]} 33. Qd3 {[%clk 0:00:34]}  Rc3 {[%clk 0:00:38]} 34. Qd6 {[%clk 0:00:34]}  Qxd6 {[%clk 0:00:36]} 35. Rxd6 {[%clk 0:00:35]}  R8c6 {[%clk 0:00:33]} 36. Red1 {[%clk 0:00:34]}  Rxd6 {[%clk 0:00:31]} 37. Rxd6 {[%clk 0:00:35]}  Rxa3 {[%clk 0:00:32]} 38. Rxf6 {[%clk 0:00:36]}  Ra4 {[%clk 0:00:26]} 39. Rb6 {[%clk 0:00:32]}  Rxb4 {[%clk 0:00:25]} 40. Rxa6 {[%clk 0:00:23]}  Rxe4 {[%clk 0:00:24]} 41. Ra7+ {[%clk 0:00:24]}  Kg8 {[%clk 0:00:23]} 42. Rb7 {[%clk 0:00:20]}  b4 {[%clk 0:00:21]} 43. Nh4 {[%clk 0:00:21]}  g5 {[%clk 0:00:16]} 44. Ng6 {[%clk 0:00:17]}  g4 {[%clk 0:00:13]} 45. h4 {[%clk 0:00:14]}  Bd2 {[%clk 0:00:11]} 46. Ne7+ {[%clk 0:00:14]}  Kf8 {[%clk 0:00:10]} 47. Nd5 {[%clk 0:00:14]}  Rd4 {[%clk 0:00:09]} 48. Nf6 {[%clk 0:00:15]}  e4 {[%clk 0:00:05]} 49. Nxh5 {[%clk 0:00:15]}  e3 {[%clk 0:00:05]} 50. fxe3 {[%clk 0:00:14]}  Bxe3 {[%clk 0:00:06]} 51. Kf1 {[%clk 0:00:11]}  Rc4 {[%clk 0:00:03]} 52. Nf6 {[%clk 0:00:09]}  Bd4 {[%clk 0:00:03]} 53. Nxg4 {[%clk 0:00:03]}  Bc3 {[%clk 0:00:02]} 54. Ne3 {[%clk 0:00:04]}  Re4 {[%clk 0:00:00]} 55. Nd5 {[%clk 0:00:04]} 1-0


[Site "https://www.chess.com"]